fUSD/lending_fUSD_20240520
["ID","MTS","AMOUNT","RATE_DAILY","PERIOD"]
[327590678,1716246653396,-616.96,0.00038356,6]
[327590679,1716246653406,-500.0,0.00038356,6]
[327590680,1716246653415,-31050.72,0.00038356,6]
[327590681,1716246653425,-1266.94,0.00038356,2]
[327590682,1716246653435,-4184.73,0.00038356,6]
[327590683,1716246653446,-7122.67,0.00038356,6]
[327590684,1716246653455,-1683.02,0.00038356,6]
[327590685,1716246653465,-508.64867314,0.00038356,6]
[327590686,1716246653475,-4614.9,0.00038356,6]
[327590687,1716246653485,-500.0,0.00038356,6]
[327590688,1716246653494,-500.0,0.00038356,6]
[327590689,1716246653505,-5543.31,0.00038356,6]
[327590690,1716246653515,-500.0,0.00038356,6]
[327590691,1716246653525,-500.0,0.00038356,6]
[327590692,1716246653535,-6630.33,0.00038356,6]
[327590693,1716246653544,-513.76168935,0.00038356,6]
[327590694,1716246653554,-1595.19,0.00038356,6]
[327590695,1716246653564,-500.0,0.00038356,6]
[327590696,1716246653574,-1219.42,0.00038356,6]
[327590697,1716246653584,-2891.57,0.00038356,6]
[327590698,1716246653594,-500.0,0.00038356,6]
[327590699,1716246653604,-500.0,0.00038356,6]
[327590700,1716246653614,-500.0,0.00038356,6]
[327590701,1716246653625,-1113.18,0.00038356,6]
[327590702,1716246653635,-2085.53,0.00038356,6]
[327590703,1716246653645,-2048.08,0.00038356,6]
[327590704,1716246653656,-500.0,0.00038356,6]
[327590705,1716246653666,-500.0,0.00038356,6]
[327590706,1716246653676,-1299.94,0.00038356,6]
[327590707,1716246653687,-1272.93,0.00038356,6]
[327590708,1716246653697,-500.0,0.00038356,6]
[327590709,1716246653707,-503.65935818,0.00038356,6]
[327590710,1716246653716,-632.26,0.00038356,6]
[327590711,1716246653726,-2573.28,0.00038356,6]
[327590712,1716246653736,-500.0,0.00038356,6]
[327590713,1716246653746,-500.0,0.00038356,6]
[327590714,1716246653757,-2405.47,0.00038356,6]
[327590715,1716246653767,-500.0,0.00038356,6]
[327590716,1716246653777,-500.0,0.00038356,6]
[327590717,1716246653787,-2338.09,0.00038356,6]
[327590718,1716246653796,-500.0,0.00038356,6]
[327590719,1716246653806,-1007.81,0.00038356,6]
[327590720,1716246653816,-2108.8,0.00038356,6]
[327590721,1716246653825,-500.0,0.00038356,6]
[327590722,1716246653835,-520.24,0.00038356,6]
[327590723,1716246653845,-500.0,0.00038356,6]
[327590724,1716246653855,-1893.27,0.00038356,6]
[327590725,1716246653865,-500.0,0.00038356,6]
[327590726,1716246653876,-734.1,0.00038356,6]
[327590727,1716246653886,-677.98,0.00038356,6]
[327590728,1716246653897,-882.42,0.00038356,6]
[327590729,1716246653907,-500.0,0.00038356,6]
[327590730,1716246653918,-500.0,0.00038356,6]
[327590731,1716246653929,-3113.46,0.00038356,6]
[327590732,1716246653940,-500.0,0.00038356,6]
[327590733,1716246653950,-470.20732715,0.00038356,6]
[327590734,1716246653961,-500.0,0.00038356,6]
[327590735,1716246653972,-4139.38,0.00038356,6]
[327590736,1716246653981,-500.0,0.00038356,6]
[327590737,1716246653993,-500.0,0.00038356,6]
[327590738,1716246654003,-500.0,0.00038356,6]
[327590739,1716246654012,-760.9,0.00038356,6]
[327590740,1716246654022,-1940.07,0.00038356,6]
[327590741,1716246654032,-1757.53,0.00038356,6]
[327590742,1716246654042,-956.04,0.00038356,6]
[327590743,1716246654051,-500.0,0.00038356,6]
[327590744,1716246654061,-753.42,0.00038356,6]
[327590745,1716246654070,-500.0,0.00038356,6]
[327590746,1716246654080,-500.0,0.00038356,6]
[327590747,1716246654090,-500.0,0.00038356,6]
[327590748,1716246654100,-629.59,0.00038356,6]
[327590749,1716246654110,-671.07,0.00038356,6]
[327590750,1716246654119,-14738.93,0.00038356,6]
[327590751,1716246654130,-2171.15,0.00038356,6]
[327590752,1716246654140,-1023.5,0.00038356,6]
[327590753,1716246654150,-521.74483147,0.00038356,6]
[327590754,1716246654160,-6770.41,0.00038356,6]
[327590755,1716246654169,-501.2315895,0.00038356,6]
[327590756,1716246654179,-3863.43,0.00038356,6]
[327590757,1716246654189,-500.0,0.00038356,6]
[327590758,1716246654198,-500.0,0.00038356,6]
[327590759,1716246654208,-1544.75,0.00038356,6]
[327590760,1716246654218,-620.75,0.00038356,6]
[327590761,1716246654228,-781.34,0.00038356,6]
[327590762,1716246654237,-2604.97,0.00038356,6]
[327590763,1716246654248,-676.73,0.00038356,6]
[327590764,1716246654259,-500.0,0.00038356,6]
[327590765,1716246654274,-500.0,0.00038356,6]
[327590766,1716246654284,-649.57,0.00038356,6]
[327590767,1716246654294,-364.72356661,0.00038356,6]
[327590768,1716246654305,-500.0,0.00038356,6]
[327590769,1716246654315,-2650.42,0.00038356,6]
[327590770,1716246654325,-1701.73,0.00038356,6]
[327590771,1716246654334,-500.0,0.00038356,6]
[327590772,1716246654344,-500.0,0.00038356,6]
[327590773,1716246654355,-500.0,0.00038356,6]
[327590774,1716246654364,-500.0,0.00038356,6]
[327590775,1716246654374,-3097.94,0.00038356,6]
[327590776,1716246654383,-556.28,0.00038356,6]
[327590777,1716246654393,-742.83,0.00038356,6]
[327590778,1716246654403,-756.34,0.00038356,6]
[327590779,1716246654413,-500.0,0.00038356,6]
[327590780,1716246654423,-1042.79,0.00038356,6]
[327590781,1716246654433,-1017.67,0.00038356,6]
[327590782,1716246654443,-3366.33,0.00038356,6]
[327590783,1716246654453,-2045.11,0.00038356,6]
[327590784,1716246654463,-500.0,0.00038356,6]
[327590785,1716246654473,-500.0,0.00038356,6]
[327590786,1716246654482,-1624.86,0.00038356,6]
[327590787,1716246654492,-21069.99,0.00038356,6]
[327590788,1716246654501,-1520.85,0.00038356,6]
[327590789,1716246654513,-500.0,0.00038356,6]
[327590790,1716246654523,-500.0,0.00038356,6]
[327590791,1716246654533,-500.0,0.00038356,6]
[327590792,1716246654542,-11585.55,0.00038356,6]
[327590793,1716246654552,-561.83748079,0.00038356,6]
[327590794,1716246654562,-1659.83,0.00038356,6]
[327590795,1716246654571,-813.72,0.00038356,6]
[327590796,1716246654581,-1180.21,0.00038356,6]
[327590797,1716246654591,-500.0,0.00038356,6]
[327590798,1716246654600,-583.80502384,0.00038356,6]
[327590799,1716246654610,-500.0,0.00038356,6]
[327590800,1716246654620,-1121.26,0.00038356,6]
[327590801,1716246654630,-500.0,0.00038356,6]
[327590802,1716246654640,-500.0,0.00038356,6]
[327590803,1716246654650,-585.55531709,0.00038356,6]
[327590804,1716246654660,-500.0,0.00038356,6]
[327590805,1716246654670,-2953.4,0.00038356,6]
[327590806,1716246654680,-2205.27,0.00038356,6]
[327590807,1716246654689,-3219.62,0.00038356,6]
[327590808,1716246654700,-686.04,0.00038356,6]
[327590809,1716246654710,-8442.33,0.00038356,6]
[327590810,1716246654720,-500.0,0.00038356,6]
[327590811,1716246654730,-769.66,0.00038356,6]
[327590812,1716246654740,-564.0,0.00038356,6]
[327590813,1716246654751,-670.88,0.00038356,6]
[327590814,1716246654762,-530.63,0.00038356,6]
[327590815,1716246654772,-1259.58,0.00038356,6]
[327590816,1716246654782,-1932.37,0.00038356,6]
[327590817,1716246654792,-500.0,0.00038356,6]
[327590818,1716246654802,-500.0,0.00038356,6]
[327590819,1716246655083,-8812.96,0.00038356,6]
[327590820,1716246655093,-2195.53,0.00038356,6]
[327590821,1716246655104,-1283.64,0.00038356,6]
[327590822,1716246655114,-9543.04,0.00038356,6]
[327590823,1716246655124,-555.84,0.00038356,6]
[327590824,1716246655134,-500.0,0.00038356,6]
[327590825,1716246655143,-574.5,0.00038356,6]
[327590826,1716246655153,-2230.85,0.00038356,6]
[327590827,1716246655164,-653.4,0.00038356,6]
[327590828,1716246655174,-500.0,0.00038356,6]
[327590829,1716246655184,-500.0,0.00038356,6]
[327590830,1716246655194,-1507.66,0.00038356,6]
[327590831,1716246655203,-500.0,0.00038356,6]
[327590832,1716246655213,-942.31,0.00038356,6]
[327590833,1716246655224,-500.0,0.00038356,6]
[327590834,1716246655233,-991.95,0.00038356,6]
[327590835,1716246655244,-3681.57,0.00038356,6]
[327590836,1716246655254,-500.0,0.00038356,6]
[327590837,1716246655268,-500.0,0.00038356,6]
[327590838,1716246655277,-500.0,0.00038356,6]
[327590839,1716246655287,-1081.9,0.00038356,6]
[327590840,1716246655296,-500.0,0.00038356,6]
[327590841,1716246655307,-500.0,0.00038356,6]
[327590842,1716246655317,-8066.57,0.00038356,6]
[327590843,1716246655327,-1589.03,0.00038356,6]
[327590844,1716246655337,-524.22,0.00038356,6]
[327590845,1716246655349,-1173.17,0.00038356,6]
[327590846,1716246655360,-1448.33,0.00038356,6]
[327590847,1716246655370,-500.0,0.00038356,6]
[327590848,1716246655379,-500.0,0.00038356,6]
[327590849,1716246655390,-1202.8,0.00038356,6]
[327590850,1716246655400,-2792.2,0.00038356,6]
[327590851,1716246655410,-500.0,0.00038356,6]
[327590852,1716246655419,-500.0,0.00038356,6]
[327590853,1716246655428,-500.0,0.00038356,6]
[327590854,1716246655438,-500.0,0.00038356,6]
[327590855,1716246655448,-2599.42,0.00038356,6]
[327590856,1716246655458,-1372.08,0.00038356,6]
[327590857,1716246655468,-500.0,0.00038356,6]
[327590858,1716246655478,-2197.36,0.00038356,6]
[327590859,1716246655489,-1311.61,0.00038356,6]
[327590860,1716246655500,-4115.35,0.00038356,6]
[327590861,1716246655511,-500.0,0.00038356,6]
[327590862,1716246655521,-500.0,0.00038356,6]
[327590863,1716246655531,-500.0,0.00038356,6]
[327590864,1716246655541,-500.0,0.00038356,6]
[327590865,1716246655551,-500.0,0.00038356,6]
[327590866,1716246655562,-500.0,0.00038356,6]
[327590867,1716246655571,-500.0,0.00038356,6]
[327590868,1716246655582,-556.08551041,0.00038356,6]
[327590869,1716246655592,-500.0,0.00038356,6]
[327590870,1716246655601,-500.0,0.00038356,6]
[327590871,1716246655611,-1248.45,0.00038356,6]
[327590872,1716246655621,-500.0,0.00038356,6]
[327590873,1716246655631,-818.38,0.00038356,6]
[327590874,1716246655642,-551.38,0.00038356,6]
[327590875,1716246655651,-1166.82,0.00038356,6]
[327590876,1716246655661,-889.73,0.00038356,6]
[327590877,1716246655671,-500.0,0.00038356,6]
[327590878,1716246655681,-4782.56,0.00038356,6]
[327590879,1716246655691,-2760.24,0.00038356,6]
[327590880,1716246655701,-3451.78,0.00038356,6]
[327590881,1716246655710,-500.0,0.00038356,6]
[327590882,1716246655721,-804.28,0.00038356,6]
[327590883,1716246655731,-7172.29,0.00038356,6]
[327590884,1716246655740,-504.06223891,0.00038356,6]
[327590885,1716246655750,-806.25,0.00038356,6]
[327590886,1716246655763,-500.0,0.00038356,6]
[327590887,1716246655772,-500.0,0.00038356,6]
[327590888,1716246655782,-500.0,0.00038356,6]
[327590889,1716246655792,-500.0,0.00038356,6]
[327590890,1716246655802,-2227.02,0.00038356,6]
[327590891,1716246655812,-1648.04,0.00038356,6]
[327590892,1716246655822,-1451.09,0.00038356,6]
[327590893,1716246655833,-3539.72,0.00038356,6]
[327590894,1716246655843,-500.0,0.00038356,6]
[327590895,1716246655853,-1260.01,0.00038356,6]
[327590896,1716246655862,-500.0,0.00038356,6]
[327590897,1716246655872,-594.06037721,0.00038356,6]
[327590898,1716246655882,-3810.44,0.00038356,6]
[327590899,1716246655892,-1127.1,0.00038356,6]
[327590900,1716246655902,-500.0,0.00038356,6]
[327590901,1716246655912,-2724.72,0.00038356,6]
[327590902,1716246655921,-500.0,0.00038356,6]
[327590903,1716246655930,-1327.78,0.00038356,6]
[327590904,1716246655940,-500.0,0.00038356,6]
[327590905,1716246655949,-500.0,0.00038356,6]
[327590906,1716246655959,-3095.64,0.00038356,6]
[327590907,1716246655970,-500.0,0.00038356,6]
[327590908,1716246655979,-500.0,0.00038356,6]
[327590909,1716246655989,-500.0,0.00038356,6]
[327590910,1716246655998,-500.0,0.00038356,6]
[327590911,1716246656009,-500.0,0.00038356,6]
[327590912,1716246656019,-500.0,0.00038356,6]
[327590913,1716246656028,-2294.4,0.00038356,6]
[327590914,1716246656038,-3662.22,0.00038356,6]
[327590915,1716246656047,-2344.33,0.00038356,6]
[327590916,1716246656057,-500.0,0.00038356,6]
[327590917,1716246656066,-2919.45,0.00038356,6]
[327590918,1716246656076,-500.0,0.00038356,6]
[327590919,1716246656085,-12060.74,0.00038356,6]
[327590920,1716246656095,-2053.36,0.00038356,6]
[327590921,1716246656105,-5062.07,0.00038356,6]
[327590922,1716246656115,-668.13,0.00038356,6]
[327590923,1716246656125,-500.0,0.00038356,6]
[327590924,1716246656135,-1665.69,0.00038356,6]
[327590925,1716246656144,-818.94,0.00038356,6]
[327590926,1716246656153,-500.0,0.00038356,6]
[327590927,1716246656163,-500.0,0.00038356,6]
[327590928,1716246656172,-500.0,0.00038356,6]
[327590929,1716246656181,-2979.18,0.00038356,6]
[327590930,1716246656191,-2276.61,0.00038356,6]
[327590931,1716246656201,-832.65,0.00038356,6]
[327590932,1716246656210,-1202.24,0.00038356,6]
[327590933,1716246656220,-522.05486497,0.00038356,6]
[327590934,1716246656230,-500.0,0.00038356,6]
[327590935,1716246656240,-500.0,0.00038356,6]
[327590936,1716246656250,-547.43,0.00038356,6]
[327590937,1716246656262,-4292.85,0.00038356,6]
[327590938,1716246656275,-2981.46,0.00038356,6]
[327590939,1716246656284,-500.0,0.00038356,6]
[327590940,1716246656294,-511.68,0.00038356,6]
[327590941,1716246656305,-3960.48,0.00038356,6]
[327590942,1716246656315,-500.0,0.00038356,6]
[327590943,1716246656324,-648.75,0.00038356,6]
[327590944,1716246656334,-1633.91,0.00038356,6]
[327590945,1716246656345,-500.0,0.00038356,6]
[327590946,1716246656355,-1623.31,0.00038356,6]
[327590947,1716246656364,-500.0,0.00038356,6]
[327590948,1716246656374,-500.0,0.00038356,6]
[327590949,1716246656383,-3725.21,0.00038356,6]
[327590950,1716246656393,-2927.56,0.00038356,6]
[327590951,1716246656402,-3947.76,0.00038356,6]
[327590952,1716246656411,-844.95,0.00038356,6]
[327590953,1716246656421,-500.0,0.00038356,6]
[327590954,1716246656431,-1350.66,0.00038356,6]
[327590955,1716246656441,-566.76,0.00038356,6]
[327590956,1716246656450,-796.37,0.00038356,6]
[327590957,1716246656460,-3114.22,0.00038356,6]
[327590958,1716246656469,-500.0,0.00038356,6]
[327590959,1716246656479,-1248.3,0.00038356,6]
[327590960,1716246656489,-500.0,0.00038356,6]
[327590961,1716246656498,-568.24,0.00038356,6]
[327590962,1716246656509,-500.0,0.00038356,6]
[327590963,1716246656519,-500.0,0.00038356,6]
[327590964,1716246656528,-500.0,0.00038356,6]
[327590965,1716246656538,-503.24134299,0.00038356,6]
[327590966,1716246656547,-500.0,0.00038356,6]
[327590967,1716246656557,-1010.42,0.00038356,6]
[327590968,1716246656566,-528.38,0.00038356,6]
[327590969,1716246656575,-500.0,0.00038356,6]
[327590970,1716246656585,-500.0,0.00038356,6]
[327590971,1716246656594,-1534.7,0.00038356,6]
[327590972,1716246656603,-1367.3,0.00038356,6]
[327590973,1716246656613,-500.0,0.00038356,6]
[327590974,1716246656622,-236.3,0.000384,6]
[327590975,1716246656631,-150.0,0.00038428,2]
[327590976,1716246656640,-179.84489188,0.00038529,2]
[327590977,1716246656650,-6460.24858826,0.0003853,2]
[327590978,1716246656659,-150.0,0.00038545,2]
[327590979,1716246656668,-203.0,0.0003862,15]
[327590980,1716246656678,-150.0,0.00038627,2]
[327590981,1716246656688,-566.07,0.00038629,6]
[327590982,1716246656698,-566.07,0.00038629,6]
[327590983,1716246656708,-566.07,0.00038629,6]
[327590984,1716246656717,-566.07,0.00038629,6]
[327590985,1716246656727,-566.07,0.00038629,6]
[327590986,1716246656737,-566.07,0.00038629,6]
[327590987,1716246656747,-566.07,0.00038629,6]
[327590988,1716246656758,-566.07,0.00038629,6]
[327590989,1716246656767,-981.39,0.0003863,6]
[327590990,1716246656777,-500.0,0.0003863,6]
[327590991,1716246656786,-500.0,0.0003863,6]
[327590992,1716246656795,-189.3401189,0.0003863,6]
[327590993,1716246656806,-500.0,0.0003863,6]
[327590994,1716246656816,-524.18,0.0003863,6]
[327590995,1716246656826,-500.0,0.0003863,6]
[327590996,1716246656835,-500.0,0.0003863,6]
[327590997,1716246656844,-500.0,0.0003863,6]
[327590998,1716246656854,-500.0,0.0003863,6]
[327590999,1716246656863,-500.0,0.0003863,6]
[327591000,1716246656873,-500.0,0.0003863,6]
[327591001,1716246656882,-500.0,0.0003863,6]
[327591002,1716246656892,-500.0,0.0003863,6]
[327591003,1716246656902,-500.0,0.0003863,6]
[327591004,1716246656913,-557.26512084,0.0003863,6]
[327591005,1716246656924,-605.12,0.0003863,6]
[327591006,1716246656934,-407.41424295,0.0003863,6]
[327591007,1716246656944,-500.0,0.0003863,6]
[327591008,1716246656953,-500.0,0.0003863,6]
[327591009,1716246656963,-500.0,0.0003863,6]
[327591010,1716246656973,-500.0,0.0003863,6]
[327591011,1716246656983,-993.47,0.0003863,6]
[327591012,1716246656993,-500.0,0.0003863,6]
[327591013,1716246657003,-500.0,0.0003863,6]
[327591014,1716246657018,-500.0,0.0003863,6]
[327591015,1716246657027,-500.0,0.0003863,6]
[327591016,1716246657037,-245.06947945,0.0003863,6]
[327591017,1716246657046,-500.0,0.0003863,6]
[327591018,1716246657056,-646.97506235,0.0003863,6]
[327591019,1716246657065,-500.0,0.0003863,6]
[327591020,1716246657074,-500.0,0.0003863,6]
[327591021,1716246657084,-644.94,0.0003863,6]
[327591022,1716246657093,-500.0,0.0003863,6]
[327591023,1716246657103,-500.0,0.0003863,6]
[327591024,1716246657112,-500.0,0.0003863,6]
[327591025,1716246657122,-500.0,0.0003863,6]
[327591026,1716246657131,-500.0,0.0003863,6]
[327591027,1716246657141,-500.0,0.0003863,6]
[327591028,1716246657150,-500.0,0.0003863,6]
[327591029,1716246657159,-500.0,0.0003863,6]
[327591030,1716246657169,-500.0,0.0003863,6]
[327591031,1716246657178,-500.0,0.0003863,6]
[327591032,1716246657188,-500.0,0.0003863,6]
[327591033,1716246657197,-500.0,0.0003863,6]
[327591034,1716246657207,-500.0,0.0003863,6]
[327591035,1716246657217,-500.0,0.0003863,6]
[327591036,1716246657228,-500.0,0.0003863,6]
[327591037,1716246657239,-706.15,0.0003863,6]
[327591038,1716246657250,-963.13,0.0003863,6]
[327591039,1716246657263,-675.0,0.0003863,6]
[327591040,1716246657274,-500.0,0.0003863,6]
[327591041,1716246657283,-534.00720558,0.0003863,6]
[327591042,1716246657293,-617.75,0.0003863,6]
[327591043,1716246657303,-1361.19,0.0003863,6]
[327591044,1716246657314,-500.0,0.0003863,6]
[327591045,1716246657324,-500.0,0.0003863,6]
[327591046,1716246657334,-500.0,0.0003863,6]
[327591047,1716246657347,-538.86569682,0.0003863,6]
[327591048,1716246657357,-500.0,0.0003863,6]
[327591049,1716246657366,-582.73,0.0003863,6]
[327591050,1716246657376,-500.0,0.0003863,6]
[327591051,1716246657385,-500.0,0.0003863,6]
[327591052,1716246657395,-500.0,0.0003863,6]
[327591053,1716246657405,-526.3489134,0.0003863,6]
[327591054,1716246657414,-552.48898216,0.0003863,6]
[327591055,1716246657500,-500.0,0.0003863,6]
[327591056,1716246657513,-500.0,0.0003863,6]
[327591057,1716246657522,-534.85736592,0.0003863,6]
[327591058,1716246657532,-605.07440565,0.0003863,6]
[327591059,1716246657542,-500.0,0.0003863,6]
[327591060,1716246657551,-453.76686717,0.0003863,6]
[327591061,1716246657561,-500.0,0.0003863,6]
[327591062,1716246657570,-289.08210818,0.0003863,6]
[327591063,1716246657580,-542.61060512,0.0003863,6]
[327591064,1716246657588,-500.0,0.0003863,6]
[327591065,1716246657598,-500.0,0.0003863,6]
[327591066,1716246657607,-500.0,0.0003863,6]
[327591067,1716246657616,-500.0,0.0003863,6]
[327591068,1716246657625,-539.79925604,0.0003863,6]
[327591069,1716246657634,-500.0,0.0003863,6]
[327591070,1716246657643,-260.3852846,0.0003863,6]
[327591071,1716246657653,-500.0,0.0003863,6]
[327591072,1716246657662,-500.0,0.0003863,6]
[327591073,1716246657672,-500.0,0.0003863,6]
[327591074,1716246657681,-500.0,0.0003863,6]
[327591075,1716246657690,-500.0,0.0003863,6]
[327591076,1716246657699,-500.0,0.0003863,6]
[327591077,1716246657711,-506.32890215,0.0003863,6]
[327591078,1716246657721,-302.72858684,0.0003863,6]
[327591079,1716246657731,-296.27767735,0.0003863,6]
[327591080,1716246657740,-652.99,0.0003863,6]
[327591081,1716246657750,-500.0,0.0003863,6]
[327591082,1716246657763,-500.0,0.0003863,6]
[327591083,1716246657773,-500.0,0.0003863,6]
[327591084,1716246657782,-500.0,0.0003863,6]
[327591085,1716246657791,-596.88,0.0003863,6]
[327591086,1716246657801,-522.47916385,0.0003863,6]
[327591087,1716246657811,-500.0,0.0003863,6]
[327591088,1716246657821,-951.14,0.0003863,6]
[327591089,1716246657831,-661.32,0.0003863,6]
[327591090,1716246657841,-213.20523583,0.0003863,6]
[327591091,1716246657853,-500.0,0.0003863,6]
[327591092,1716246657863,-1144.55,0.0003863,6]
[327591093,1716246657873,-500.0,0.0003863,6]
[327591094,1716246657883,-500.0,0.0003863,6]
[327591095,1716246657892,-500.0,0.0003863,6]
[327591096,1716246657902,-500.0,0.0003863,6]
[327591097,1716246657911,-500.0,0.0003863,6]
[327591098,1716246657921,-500.0,0.0003863,6]
[327591099,1716246657930,-1432.71,0.0003863,6]
[327591100,1716246657939,-500.0,0.0003863,6]
[327591101,1716246657948,-500.0,0.0003863,6]
[327591102,1716246657957,-500.0,0.0003863,6]
[327591103,1716246657967,-500.0,0.0003863,6]
[327591104,1716246657976,-500.0,0.0003863,6]
[327591105,1716246657987,-933.1,0.0003863,6]
[327591106,1716246657997,-500.0,0.0003863,6]
[327591107,1716246658009,-500.0,0.0003863,6]
[327591108,1716246658018,-500.0,0.0003863,6]
[327591109,1716246658027,-500.0,0.0003863,6]
[327591110,1716246658036,-1010.0,0.0003863,6]
[327591111,1716246658046,-500.0,0.0003863,6]
[327591112,1716246658056,-578.46,0.0003863,6]
[327591113,1716246658066,-620.21,0.0003863,6]
[327591114,1716246658075,-500.0,0.0003863,6]
[327591115,1716246658084,-500.0,0.0003863,2]
[327591116,1716246658094,-500.0,0.0003863,6]
[327591117,1716246658104,-650.53,0.0003863,6]
[327591118,1716246658113,-500.0,0.0003863,6]
[327591119,1716246658125,-693.87,0.0003863,6]
[327591120,1716246658135,-500.0,0.0003863,6]
[327591121,1716246658145,-500.0,0.0003863,6]
[327591122,1716246658155,-542.68,0.0003863,6]
[327591123,1716246658165,-637.78,0.0003863,6]
[327591124,1716246658175,-544.83,0.0003863,6]
[327591125,1716246658184,-991.09,0.0003863,6]
[327591126,1716246658195,-500.0,0.0003863,6]
[327591127,1716246658205,-500.0,0.0003863,6]
[327591128,1716246658216,-1494.37,0.0003863,6]
[327591129,1716246658225,-500.0,0.0003863,6]
[327591130,1716246658235,-500.0,0.0003863,6]
[327591131,1716246658246,-500.0,0.0003863,6]
[327591132,1716246658255,-500.0,0.0003863,6]
[327591133,1716246658266,-882.87,0.0003863,6]
[327591134,1716246658281,-500.0,0.0003863,6]
[327591135,1716246658291,-526.18871408,0.0003863,6]
[327591136,1716246658300,-1368.93,0.0003863,6]
[327591137,1716246658309,-291.97213878,0.0003863,6]
[327591138,1716246658319,-500.0,0.0003863,6]
[327591139,1716246658328,-2000.0,0.0003863,30]
[327591140,1716246658338,-500.0,0.0003863,6]
[327591141,1716246658348,-500.0,0.0003863,6]
[327591142,1716246658357,-500.0,0.0003863,6]
[327591143,1716246658367,-500.0,0.0003863,6]
[327591144,1716246658376,-657.4,0.0003863,6]
[327591145,1716246658385,-528.67099999,0.0003863,6]
[327591146,1716246658394,-500.0,0.0003863,6]
[327591147,1716246658404,-500.0,0.0003863,6]
[327591148,1716246658413,-500.0,0.0003863,6]
[327591149,1716246658422,-500.0,0.0003863,6]
[327591150,1716246658431,-1079.66,0.0003863,6]
[327591151,1716246658441,-818.11,0.0003863,6]
[327591152,1716246658450,-500.0,0.0003863,6]
[327591153,1716246658460,-519.94,0.0003863,6]
[327591154,1716246658469,-529.42,0.0003863,6]
[327591155,1716246658479,-500.0,0.0003863,6]
[327591156,1716246658489,-500.0,0.0003863,6]
[327591157,1716246658499,-500.0,0.0003863,6]
[327591158,1716246658508,-1104.38,0.0003863,6]
[327591159,1716246658518,-500.0,0.0003863,6]
[327591160,1716246658527,-500.0,0.0003863,6]
[327591161,1716246658539,-517.28,0.0003863,6]
[327591162,1716246658548,-1385.47,0.0003863,6]
[327591163,1716246658558,-889.2,0.0003863,6]
[327591164,1716246658568,-757.19,0.0003863,6]
[327591165,1716246658577,-500.0,0.0003863,6]
[327591166,1716246658587,-500.0,0.0003863,6]
[327591167,1716246658596,-500.0,0.0003863,6]
[327591168,1716246658605,-761.68,0.0003863,6]
[327591169,1716246658615,-834.71,0.0003863,6]
[327591170,1716246658624,-1297.95,0.0003863,6]
[327591171,1716246658633,-500.0,0.0003863,6]
[327591172,1716246658642,-500.0,0.0003863,6]
[327591173,1716246658652,-500.0,0.0003863,6]
[327591174,1716246658661,-500.0,0.0003863,6]
[327591175,1716246658671,-635.84,0.0003863,6]
[327591176,1716246658680,-636.12,0.0003863,6]
[327591177,1716246658689,-500.0,0.0003863,6]